Workbook

Sheet 色の検索
J3: No | K3: 番号 | L3: 色 | M3: R | N3: G | O3: B | Q3: ２乗誤差 | R3: 誤差
J4: 1 | K4: 3713 | M4: 253 | N4: 204 | O4: 198 | Q4: =ABS(M4-$B$11)^2+ABS(N4-$D$11)^2+ABS(O4-$F$11)^2 -> 144829 | R4: =ABS(M4-$B$11)+ABS(N4-$D$11)+ABS(O4-$F$11) -> 655
J5: 2 | K5: 761 | M5: 253 | N5: 187 | O5: 170 | Q5: =ABS(M5-$B$11)^2+ABS(N5-$D$11)^2+ABS(O5-$F$11)^2 -> 127878 | R5: =ABS(M5-$B$11)+ABS(N5-$D$11)+ABS(O5-$F$11) -> 610
J6: 3 | K6: 760 | M6: 253 | N6: 155 | O6: 157 | Q6: =ABS(M6-$B$11)^2+ABS(N6-$D$11)^2+ABS(O6-$F$11)^2 -> 112683 | R6: 565
J7: 4 | K7: 3712 | M7: 215 | N7: 89 | O7: 94 | Q7: =ABS(M7-$B$11)^2+ABS(N7-$D$11)^2+ABS(O7-$F$11)^2 -> 62982 | R7: 398
J8: 5 | K8: 3328 | M8: 205 | N8: 71 | O8: 75 | Q8: =ABS(M8-$B$11)^2+ABS(N8-$D$11)^2+ABS(O8-$F$11)^2 -> 52691 | R8: 351
J9: 6 | K9: 347 | M9: 182 | N9: 58 | O9: 60 | Q9: =ABS(M9-$B$11)^2+ABS(N9-$D$11)^2+ABS(O9-$F$11)^2 -> 40088 | R9: 300
B10: R | D10: G | F10: B | J10: 7 | K10: 353 | M10: 255 | N10: 188 | O10: 177 | Q10: =ABS(M10-$B$11)^2+ABS(N10-$D$11)^2+ABS(O10-$F$11)^2 -> 131698 | R10: 620
J11: 8 | K11: 352 | M11: 255 | N11: 147 | O11: 150 | Q11: =ABS(M11-$B$11)^2+ABS(N11-$D$11)^2+ABS(O11-$F$11)^2 -> 109134 | R11: 552
J12: 9 | K12: 351 | M12: 243 | N12: 98 | O12: 108 | Q12: =ABS(M12-$B$11)^2+ABS(N12-$D$11)^2+ABS(O12-$F$11)^2 -> 80317 | R12: 449
J13: 10 | K13: 350 | M13: 237 | N13: 77 | O13: 80 | Q13: =ABS(M13-$B$11)^2+ABS(N13-$D$11)^2+ABS(O13-$F$11)^2 -> 68498 | R13: 394
J14: 11 | K14: 349 | M14: 208 | N14: 68 | O14: 72 | Q14: =ABS(M14-$B$11)^2+ABS(N14-$D$11)^2+ABS(O14-$F$11)^2 -> 53072 | R14: 348
J15: 12 | K15: 817 | M15: 190 | N15: 57 | O15: 67 | Q15: =ABS(M15-$B$11)^2+ABS(N15-$D$11)^2+ABS(O15-$F$11)^2 -> 43838 | R15: 314
J16: 13 | K16: 304 | M16: 171 | N16: 52 | O16: 79 | Q16: =ABS(M16-$B$11)^2+ABS(N16-$D$11)^2+ABS(O16-$F$11)^2 -> 38186 | R16: 302
J17: 14 | K17: 3833 | M17: 233 | N17: 97 | O17: 119 | Q17: =ABS(M17-$B$11)^2+ABS(N17-$D$11)^2+ABS(O17-$F$11)^2 -> 77859 | R17: 449
J18: 15 | K18: 3832 | M18: 201 | N18: 89 | O18: 109 | Q18: =ABS(M18-$B$11)^2+ABS(N18-$D$11)^2+ABS(O18-$F$11)^2 -> 60203 | R18: 399
J19: 16 | K19: 3831 | M19: 183 | N19: 69 | O19: 93 | Q19: =ABS(M19-$B$11)^2+ABS(N19-$D$11)^2+ABS(O19-$F$11)^2 -> 46899 | R19: 345
J20: 17 | K20: 777 | M20: 150 | N20: 53 | O20: 77 | Q20: =ABS(M20-$B$11)^2+ABS(N20-$D$11)^2+ABS(O20-$F$11)^2 -> 31238 | R20: 280
J21: 18 | K21: 3801 | M21: 220 | N21: 65 | O21: 66 | Q21: =ABS(M21-$B$11)^2+ABS(N21-$D$11)^2+ABS(O21-$F$11)^2 -> 56981 | R21: 351
J22: 19 | K22: 666 | M22: 215 | N22: 53 | O22: 62 | Q22: =ABS(M22-$B$11)^2+ABS(N22-$D$11)^2+ABS(O22-$F$11)^2 -> 52878 | R22: 330
J23: 20 | K23: 321 | M23: 172 | N23: 65 | O23: 77 | Q23: =ABS(M23-$B$11)^2+ABS(N23-$D$11)^2+ABS(O23-$F$11)^2 -> 39738 | R23: 314
J24: 21 | K24: 498 | M24: 132 | N24: 57 | O24: 67 | Q24: =ABS(M24-$B$11)^2+ABS(N24-$D$11)^2+ABS(O24-$F$11)^2 -> 25162 | R24: 256
J25: 22 | K25: 816 | M25: 152 | N25: 59 | O25: 67 | Q25: =ABS(M25-$B$11)^2+ABS(N25-$D$11)^2+ABS(O25-$F$11)^2 -> 31074 | R25: 278
J26: 23 | K26: 815 | M26: 144 | N26: 72 | O26: 80 | Q26: =ABS(M26-$B$11)^2+ABS(N26-$D$11)^2+ABS(O26-$F$11)^2 -> 32320 | R26: 296
J27: 24 | K27: 814 | M27: 107 | N27: 51 | O27: 61 | Q27: =ABS(M27-$B$11)^2+ABS(N27-$D$11)^2+ABS(O27-$F$11)^2 -> 17771 | R27: 219
J28: 25 | K28: 894 | M28: 255 | N28: 177 | O28: 201 | Q28: =ABS(M28-$B$11)^2+ABS(N28-$D$11)^2+ABS(O28-$F$11)^2 -> 136755 | R28: 633
J29: 26 | K29: 893 | M29: 255 | N29: 121 | O29: 150 | Q29: =ABS(M29-$B$11)^2+ABS(N29-$D$11)^2+ABS(O29-$F$11)^2 -> 102166 | R29: 526
J30: 27 | K30: 892 | M30: 241 | N30: 82 | O30: 96 | Q30: =ABS(M30-$B$11)^2+ABS(N30-$D$11)^2+ABS(O30-$F$11)^2 -> 74021 | R30: 419
J31: 28 | K31: 891 | M31: 218 | N31: 85 | O31: 100 | Q31: =ABS(M31-$B$11)^2+ABS(N31-$D$11)^2+ABS(O31-$F$11)^2 -> 64749 | R31: 403
J32: 29 | K32: 818 | M32: 255 | N32: 224 | O32: 231 | Q32: =ABS(M32-$B$11)^2+ABS(N32-$D$11)^2+ABS(O32-$F$11)^2 -> 168562 | R32: 710
J33: 30 | K33: 957 | M33: 255 | N33: 169 | O33: 167 | Q33: =ABS(M33-$B$11)^2+ABS(N33-$D$11)^2+ABS(O33-$F$11)^2 -> 121475 | R33: 591
J34: 31 | K34: 956 | M34: 255 | N34: 131 | O34: 144 | Q34: =ABS(M34-$B$11)^2+ABS(N34-$D$11)^2+ABS(O34-$F$11)^2 -> 102922 | R34: 530
J35: 32 | K35: 3708 | M35: 255 | N35: 164 | O35: 162 | Q35: =ABS(M35-$B$11)^2+ABS(N35-$D$11)^2+ABS(O35-$F$11)^2 -> 118165 | R35: 581
J36: 33 | K36: 3706 | M36: 255 | N36: 111 | O36: 122 | Q36: =ABS(M36-$B$11)^2+ABS(N36-$D$11)^2+ABS(O36-$F$11)^2 -> 92230 | R36: 488
J37: 34 | K37: 3705 | M37: 255 | N37: 77 | O37: 93 | Q37: =ABS(M37-$B$11)^2+ABS(N37-$D$11)^2+ABS(O37-$F$11)^2 -> 79603 | R37: 425
J38: 35 | K38: 963 | M38: 255 | N38: 208 | O38: 227 | Q38: =ABS(M38-$B$11)^2+ABS(N38-$D$11)^2+ABS(O38-$F$11)^2 -> 159818 | R38: 690
J39: 36 | K39: 3716 | M39: 255 | N39: 177 | O39: 188 | Q39: =ABS(M39-$B$11)^2+ABS(N39-$D$11)^2+ABS(O39-$F$11)^2 -> 131698 | R39: 620
J40: 37 | K40: 962 | M40: 255 | N40: 140 | O40: 171 | Q40: =ABS(M40-$B$11)^2+ABS(N40-$D$11)^2+ABS(O40-$F$11)^2 -> 113866 | R40: 566
J41: 38 | K41: 961 | M41: 235 | N41: 85 | O41: 126 | Q41: =ABS(M41-$B$11)^2+ABS(N41-$D$11)^2+ABS(O41-$F$11)^2 -> 78326 | R41: 446
J42: 39 | K42: 309 | M42: 169 | N42: 62 | O42: 82 | Q42: =ABS(M42-$B$11)^2+ABS(N42-$D$11)^2+ABS(O42-$F$11)^2 -> 39129 | R42: 313
J43: 40 | K43: 819 | M43: 251 | N43: 222 | O43: 222 | Q43: =ABS(M43-$B$11)^2+ABS(N43-$D$11)^2+ABS(O43-$F$11)^2 -> 161569 | R43: 695
J44: 41 | K44: 3326 | M44: 244 | N44: 166 | O44: 165 | Q44: =ABS(M44-$B$11)^2+ABS(N44-$D$11)^2+ABS(O44-$F$11)^2 -> 114317 | R44: 575
J45: 42 | K45: 899 | M45: 232 | N45: 118 | O45: 142 | Q45: =ABS(M45-$B$11)^2+ABS(N45-$D$11)^2+ABS(O45-$F$11)^2 -> 87912 | R45: 492
J46: 43 | K46: 335 | M46: 221 | N46: 94 | O46: 123 | Q46: =ABS(M46-$B$11)^2+ABS(N46-$D$11)^2+ABS(O46-$F$11)^2 -> 72806 | R46: 438
J47: 44 | K47: 326 | M47: 168 | N47: 60 | O47: 83 | Q47: =ABS(M47-$B$11)^2+ABS(N47-$D$11)^2+ABS(O47-$F$11)^2 -> 38713 | R47: 311
J48: 45 | K48: 151 | M48: 254 | N48: 195 | O48: 212 | Q48: =ABS(M48-$B$11)^2+ABS(N48-$D$11)^2+ABS(O48-$F$11)^2 -> 147485 | R48: 661
J49: 46 | K49: 3354 | M49: 241 | N49: 156 | O49: 175 | Q49: =ABS(M49-$B$11)^2+ABS(N49-$D$11)^2+ABS(O49-$F$11)^2 -> 113042 | R49: 572
J50: 47 | K50: 3733 | M50: 216 | N50: 122 | O50: 132 | Q50: =ABS(M50-$B$11)^2+ABS(N50-$D$11)^2+ABS(O50-$F$11)^2 -> 78964 | R50: 470
J51: 48 | K51: 3731 | M51: 211 | N51: 118 | O51: 145 | Q51: =ABS(M51-$B$11)^2+ABS(N51-$D$11)^2+ABS(O51-$F$11)^2 -> 79470 | R51: 474
J52: 49 | K52: 3350 | M52: 179 | N52: 83 | O52: 106 | Q52: =ABS(M52-$B$11)^2+ABS(N52-$D$11)^2+ABS(O52-$F$11)^2 -> 50166 | R52: 368
J53: 50 | K53: 150 | M53: 168 | N53: 64 | O53: 93 | Q53: =ABS(M53-$B$11)^2+ABS(N53-$D$11)^2+ABS(O53-$F$11)^2 -> 40969 | R53: 325
J54: 51 | K54: 23 | M54: 248 | N54: 226 | O54: 224 | Q54: =ABS(M54-$B$11)^2+ABS(N54-$D$11)^2+ABS(O54-$F$11)^2 -> 162756 | R54: 698
J55: 52 | K55: 3689 | M55: 254 | N55: 203 | O55: 209 | Q55: =ABS(M55-$B$11)^2+ABS(N55-$D$11)^2+ABS(O55-$F$11)^2 -> 149406 | R55: 666
J56: 53 | K56: 3688 | M56: 199 | N56: 135 | O56: 156 | Q56: =ABS(M56-$B$11)^2+ABS(N56-$D$11)^2+ABS(O56-$F$11)^2 -> 82162 | R56: 490
J57: 54 | K57: 3687 | M57: 180 | N57: 95 | O57: 120 | Q57: =ABS(M57-$B$11)^2+ABS(N57-$D$11)^2+ABS(O57-$F$11)^2 -> 55825 | R57: 395
J58: 55 | K58: 3803 | M58: 147 | N58: 72 | O58: 100 | Q58: =ABS(M58-$B$11)^2+ABS(N58-$D$11)^2+ABS(O58-$F$11)^2 -> 36793 | R58: 319
J59: 56 | K59: 3685 | M59: 134 | N59: 65 | O59: 87 | Q59: =ABS(M59-$B$11)^2+ABS(N59-$D$11)^2+ABS(O59-$F$11)^2 -> 29750 | R59: 286
J60: 57 | K60: 605 | M60: 255 | N60: 189 | O60: 207 | Q60: =ABS(M60-$B$11)^2+ABS(N60-$D$11)^2+ABS(O60-$F$11)^2 -> 143595 | R60: 651
J61: 58 | K61: 604 | M61: 239 | N61: 146 | O61: 163 | Q61: =ABS(M61-$B$11)^2+ABS(N61-$D$11)^2+ABS(O61-$F$11)^2 -> 105006 | R61: 548
J62: 59 | K62: 603 | M62: 226 | N62: 120 | O62: 163 | Q62: =ABS(M62-$B$11)^2+ABS(N62-$D$11)^2+ABS(O62-$F$11)^2 -> 92045 | R62: 509
J63: 60 | K63: 602 | M63: 218 | N63: 97 | O63: 143 | Q63: =ABS(M63-$B$11)^2+ABS(N63-$D$11)^2+ABS(O63-$F$11)^2 -> 77382 | R63: 458
J64: 61 | K64: 601 | M64: 212 | N64: 82 | O64: 129 | Q64: =ABS(M64-$B$11)^2+ABS(N64-$D$11)^2+ABS(O64-$F$11)^2 -> 68309 | R64: 423
J65: 62 | K65: 600 | M65: 196 | N65: 61 | O65: 107 | Q65: =ABS(M65-$B$11)^2+ABS(N65-$D$11)^2+ABS(O65-$F$11)^2 -> 53586 | R65: 364
J66: 63 | K66: 3806 | M66: 241 | N66: 140 | O66: 179 | Q66: =ABS(M66-$B$11)^2+ABS(N66-$D$11)^2+ABS(O66-$F$11)^2 -> 109722 | R66: 560
J67: 64 | K67: 3805 | M67: 221 | N67: 96 | O67: 136 | Q67: =ABS(M67-$B$11)^2+ABS(N67-$D$11)^2+ABS(O67-$F$11)^2 -> 76553 | R67: 453
J68: 65 | K68: 3804 | M68: 199 | N68: 78 | O68: 116 | Q68: =ABS(M68-$B$11)^2+ABS(N68-$D$11)^2+ABS(O68-$F$11)^2 -> 59141 | R68: 393
J69: 66 | K69: 3609 | M69: 229 | N69: 161 | O69: 194 | Q69: =ABS(M69-$B$11)^2+ABS(N69-$D$11)^2+ABS(O69-$F$11)^2 -> 115998 | R69: =ABS(M69-$B$11)+ABS(N69-$D$11)+ABS(O69-$F$11) -> 584
J70: 67 | K70: 3608 | M70: 234 | N70: 148 | O70: 179 | Q70: =ABS(M70-$B$11)^2+ABS(N70-$D$11)^2+ABS(O70-$F$11)^2 -> 108701 | R70: 561
J71: 68 | K71: 3607 | M71: 207 | N71: 117 | O71: 180 | Q71: =ABS(M71-$B$11)^2+ABS(N71-$D$11)^2+ABS(O71-$F$11)^2 -> 88938 | R71: 504
J72: 69 | K72: 718 | M72: 160 | N72: 68 | O72: 114 | Q72: =ABS(M72-$B$11)^2+ABS(N72-$D$11)^2+ABS(O72-$F$11)^2 -> 43220 | R72: 342
J73: 70 | K73: 917 | M73: 173 | N73: 76 | O73: 139 | Q73: =ABS(M73-$B$11)^2+ABS(N73-$D$11)^2+ABS(O73-$F$11)^2 -> 55026 | R73: 388
J74: 71 | K74: 915 | M74: 141 | N74: 66 | O74: 113 | Q74: =ABS(M74-$B$11)^2+ABS(N74-$D$11)^2+ABS(O74-$F$11)^2 -> 37006 | R74: 320
J75: 72 | K75: 33 | M75: 127 | N75: 77 | O75: 111 | Q75: =ABS(M75-$B$11)^2+ABS(N75-$D$11)^2+ABS(O75-$F$11)^2 -> 34379 | R75: 315
J76: 73 | K76: 34 | M76: 107 | N76: 50 | O76: 78 | Q76: =ABS(M76-$B$11)^2+ABS(N76-$D$11)^2+ABS(O76-$F$11)^2 -> 20033 | R76: 235
J77: 74 | K77: 35 | M77: 81 | N77: 36 | O77: 57 | Q77: =ABS(M77-$B$11)^2+ABS(N77-$D$11)^2+ABS(O77-$F$11)^2 -> 11106 | R77: 174
J78: 75 | K78: 778 | M78: 213 | N78: 172 | O78: 183 | Q78: =ABS(M78-$B$11)^2+ABS(N78-$D$11)^2+ABS(O78-$F$11)^2 -> 108442 | R78: 568
J79: 76 | K79: 3727 | M79: 215 | N79: 163 | O79: 183 | Q79: =ABS(M79-$B$11)^2+ABS(N79-$D$11)^2+ABS(O79-$F$11)^2 -> 106283 | R79: 561
J80: 77 | K80: 316 | M80: 205 | N80: 139 | O80: 168 | Q80: =ABS(M80-$B$11)^2+ABS(N80-$D$11)^2+ABS(O80-$F$11)^2 -> 89570 | R80: 512
J81: 78 | K81: 3726 | M81: 142 | N81: 91 | O81: 106 | Q81: =ABS(M81-$B$11)^2+ABS(N81-$D$11)^2+ABS(O81-$F$11)^2 -> 39681 | R81: 339
J82: 79 | K82: 315 | M82: 139 | N82: 82 | O82: 93 | Q82: =ABS(M82-$B$11)^2+ABS(N82-$D$11)^2+ABS(O82-$F$11)^2 -> 34694 | R82: 314
J83: 80 | K83: 3802 | M83: 139 | N83: 76 | O83: 87 | Q83: =ABS(M83-$B$11)^2+ABS(N83-$D$11)^2+ABS(O83-$F$11)^2 -> 32666 | R83: 302
J84: 81 | K84: 902 | M84: 104 | N84: 59 | O84: 79 | Q84: =ABS(M84-$B$11)^2+ABS(N84-$D$11)^2+ABS(O84-$F$11)^2 -> 20538 | R84: 242
J85: 82 | K85: 3836 | M85: 179 | N85: 134 | O85: 162 | Q85: =ABS(M85-$B$11)^2+ABS(N85-$D$11)^2+ABS(O85-$F$11)^2 -> 76241 | R85: 475
J86: 83 | K86: 3835 | M86: 142 | N86: 103 | O86: 135 | Q86: =ABS(M86-$B$11)^2+ABS(N86-$D$11)^2+ABS(O86-$F$11)^2 -> 48998 | R86: 380
J87: 84 | K87: 3834 | M87: 125 | N87: 81 | O87: 115 | Q87: =ABS(M87-$B$11)^2+ABS(N87-$D$11)^2+ABS(O87-$F$11)^2 -> 35411 | R87: 321
J88: 85 | K88: 154 | M88: 77 | N88: 54 | O88: 75 | Q88: =ABS(M88-$B$11)^2+ABS(N88-$D$11)^2+ABS(O88-$F$11)^2 -> 14470 | R88: 206
J89: 86 | K89: 24 | M89: 229 | N89: 215 | O89: 222 | Q89: =ABS(M89-$B$11)^2+ABS(N89-$D$11)^2+ABS(O89-$F$11)^2 -> 147950 | R89: 666
J90: 87 | K90: 25 | M90: 217 | N90: 203 | O90: 218 | Q90: =ABS(M90-$B$11)^2+ABS(N90-$D$11)^2+ABS(O90-$F$11)^2 -> 135822 | R90: 638
J91: 88 | K91: 26 | M91: 201 | N91: 195 | O91: 216 | Q91: =ABS(M91-$B$11)^2+ABS(N91-$D$11)^2+ABS(O91-$F$11)^2 -> 125082 | R91: 612
J92: 89 | K92: 211 | M92: 200 | N92: 186 | O92: 221 | Q92: =ABS(M92-$B$11)^2+ABS(N92-$D$11)^2+ABS(O92-$F$11)^2 -> 123437 | R92: 607
J93: 90 | K93: 210 | M93: 188 | N93: 164 | O93: 210 | Q93: =ABS(M93-$B$11)^2+ABS(N93-$D$11)^2+ABS(O93-$F$11)^2 -> 106340 | R93: 562
J94: 91 | K94: 209 | M94: 160 | N94: 133 | O94: 182 | Q94: =ABS(M94-$B$11)^2+ABS(N94-$D$11)^2+ABS(O94-$F$11)^2 -> 76413 | R94: 475
J95: 92 | K95: 208 | M95: 134 | N95: 106 | O95: 168 | Q95: =ABS(M95-$B$11)^2+ABS(N95-$D$11)^2+ABS(O95-$F$11)^2 -> 57416 | R95: 408
J96: 93 | K96: 3837 | M96: 118 | N96: 91 | O96: 152 | Q96: =ABS(M96-$B$11)^2+ABS(N96-$D$11)^2+ABS(O96-$F$11)^2 -> 45309 | R96: 361
J97: 94 | K97: 327 | M97: 119 | N97: 81 | O97: 131 | Q97: =ABS(M97-$B$11)^2+ABS(N97-$D$11)^2+ABS(O97-$F$11)^2 -> 37883 | R97: 331
J98: 95 | K98: 153 | M98: 218 | N98: 187 | O98: 218 | Q98: =ABS(M98-$B$11)^2+ABS(N98-$D$11)^2+ABS(O98-$F$11)^2 -> 130017 | R98: 623
J99: 96 | K99: 554 | M99: 208 | N99: 171 | O99: 220 | Q99: =ABS(M99-$B$11)^2+ABS(N99-$D$11)^2+ABS(O99-$F$11)^2 -> 120905 | R99: 599
J100: 97 | K100: 553 | M100: 183 | N100: 143 | O100: 189 | Q100: =ABS(M100-$B$11)^2+ABS(N100-$D$11)^2+ABS(O100-$F$11)^2 -> 89659 | R100: 515
J101: 98 | K101: 552 | M101: 151 | N101: 111 | O101: 178 | Q101: =ABS(M101-$B$11)^2+ABS(N101-$D$11)^2+ABS(O101-$F$11)^2 -> 66806 | R101: 440
J102: 99 | K102: 550 | M102: 131 | N102: 75 | O102: 146 | Q102: =ABS(M102-$B$11)^2+ABS(N102-$D$11)^2+ABS(O102-$F$11)^2 -> 44102 | R102: 352
J103: 100 | K103: 3743 | M103: 188 | N103: 170 | O103: 182 | Q103: =ABS(M103-$B$11)^2+ABS(N103-$D$11)^2+ABS(O103-$F$11)^2 -> 97368 | R103: 540
J104: 101 | K104: 3042 | M104: 158 | N104: 145 | O104: 165 | Q104: =ABS(M104-$B$11)^2+ABS(N104-$D$11)^2+ABS(O104-$F$11)^2 -> 73214 | R104: 468
J105: 102 | K105: 3041 | M105: 131 | N105: 111 | O105: 137 | Q105: =ABS(M105-$B$11)^2+ABS(N105-$D$11)^2+ABS(O105-$F$11)^2 -> 48251 | R105: 379
J106: 103 | K106: 3740 | M106: 102 | N106: 83 | O106: 98 | Q106: =ABS(M106-$B$11)^2+ABS(N106-$D$11)^2+ABS(O106-$F$11)^2 -> 26897 | R106: 283
J107: 104 | K107: 27 | M107: 219 | N107: 209 | O107: 210 | Q107: =ABS(M107-$B$11)^2+ABS(N107-$D$11)^2+ABS(O107-$F$11)^2 -> 135742 | R107: 638
J108: 105 | K108: 28 | M108: 121 | N108: 106 | O108: 119 | Q108: =ABS(M108-$B$11)^2+ABS(N108-$D$11)^2+ABS(O108-$F$11)^2 -> 40038 | R108: 346
J109: 106 | K109: 29 | M109: 69 | N109: 54 | O109: 66 | Q109: =ABS(M109-$B$11)^2+ABS(N109-$D$11)^2+ABS(O109-$F$11)^2 -> 12033 | R109: 189
J110: 107 | K110: 3747 | M110: 185 | N110: 199 | O110: 219 | Q110: =ABS(M110-$B$11)^2+ABS(N110-$D$11)^2+ABS(O110-$F$11)^2 -> 121787 | R110: 603
J111: 108 | K111: 341 | M111: 161 | N111: 183 | O111: 201 | Q111: =ABS(M111-$B$11)^2+ABS(N111-$D$11)^2+ABS(O111-$F$11)^2 -> 99811 | R111: 545
J112: 109 | K112: 156 | M112: 112 | N112: 141 | O112: 185 | Q112: =ABS(M112-$B$11)^2+ABS(N112-$D$11)^2+ABS(O112-$F$11)^2 -> 66650 | R112: 438
J113: 110 | K113: 340 | M113: 163 | N113: 136 | O113: 186 | Q113: =ABS(M113-$B$11)^2+ABS(N113-$D$11)^2+ABS(O113-$F$11)^2 -> 79661 | R113: 485
J114: 111 | K114: 155 | M114: 155 | N114: 129 | O114: 194 | Q114: =ABS(M114-$B$11)^2+ABS(N114-$D$11)^2+ABS(O114-$F$11)^2 -> 78302 | R114: 478
J115: 112 | K115: 3746 | M115: 143 | N115: 115 | O115: 178 | Q115: =ABS(M115-$B$11)^2+ABS(N115-$D$11)^2+ABS(O115-$F$11)^2 -> 65358 | R115: 436
J116: 113 | K116: 333 | M116: 133 | N116: 98 | O116: 181 | Q116: =ABS(M116-$B$11)^2+ABS(N116-$D$11)^2+ABS(O116-$F$11)^2 -> 60054 | R116: 412
J117: 114 | K117: 30 | M117: 122 | N117: 111 | O117: 137 | Q117: =ABS(M117-$B$11)^2+ABS(N117-$D$11)^2+ABS(O117-$F$11)^2 -> 45974 | R117: 370
J118: 115 | K118: 31 | M118: 97 | N118: 87 | O118: 115 | Q118: =ABS(M118-$B$11)^2+ABS(N118-$D$11)^2+ABS(O118-$F$11)^2 -> 30203 | R118: 299
J119: 116 | K119: 32 | M119: 77 | N119: 69 | O119: 94 | Q119: =ABS(M119-$B$11)^2+ABS(N119-$D$11)^2+ABS(O119-$F$11)^2 -> 19526 | R119: 240
J120: 117 | K120: 157 | M120: 152 | N120: 188 | O120: 191 | Q120: =ABS(M120-$B$11)^2+ABS(N120-$D$11)^2+ABS(O120-$F$11)^2 -> 94929 | R120: 531
J121: 118 | K121: 794 | M121: 126 | N121: 163 | O121: 198 | Q121: =ABS(M121-$B$11)^2+ABS(N121-$D$11)^2+ABS(O121-$F$11)^2 -> 81649 | R121: 487
J122: 119 | K122: 793 | M122: 110 | N122: 138 | O122: 174 | Q122: =ABS(M122-$B$11)^2+ABS(N122-$D$11)^2+ABS(O122-$F$11)^2 -> 61420 | R122: 422
J123: 120 | K123: 3807 | M123: 89 | N123: 122 | O123: 161 | Q123: =ABS(M123-$B$11)^2+ABS(N123-$D$11)^2+ABS(O123-$F$11)^2 -> 48726 | R123: 372
J124: 121 | K124: 792 | M124: 69 | N124: 86 | O124: 136 | Q124: =ABS(M124-$B$11)^2+ABS(N124-$D$11)^2+ABS(O124-$F$11)^2 -> 30653 | R124: 291
J125: 122 | K125: 158 | M125: 84 | N125: 101 | O125: 137 | Q125: =ABS(M125-$B$11)^2+ABS(N125-$D$11)^2+ABS(O125-$F$11)^2 -> 36026 | R125: 322
J126: 123 | K126: 791 | M126: 62 | N126: 73 | O126: 113 | Q126: =ABS(M126-$B$11)^2+ABS(N126-$D$11)^2+ABS(O126-$F$11)^2 -> 21942 | R126: 248
J127: 124 | K127: 3840 | M127: 148 | N127: 184 | O127: 199 | Q127: =ABS(M127-$B$11)^2+ABS(N127-$D$11)^2+ABS(O127-$F$11)^2 -> 95361 | R127: 531
J128: 125 | K128: 3839 | M128: 97 | N128: 141 | O128: 204 | Q128: =ABS(M128-$B$11)^2+ABS(N128-$D$11)^2+ABS(O128-$F$11)^2 -> 70906 | R128: 442
J129: 126 | K129: 3838 | M129: 70 | N129: 128 | O129: 207 | Q129: =ABS(M129-$B$11)^2+ABS(N129-$D$11)^2+ABS(O129-$F$11)^2 -> 64133 | R129: 405
J130: 127 | K130: 800 | M130: 158 | N130: 203 | O130: 233 | Q130: =ABS(M130-$B$11)^2+ABS(N130-$D$11)^2+ABS(O130-$F$11)^2 -> 120462 | R130: 594
J131: 128 | K131: 809 | M131: 128 | N131: 178 | O131: 240 | Q131: =ABS(M131-$B$11)^2+ABS(N131-$D$11)^2+ABS(O131-$F$11)^2 -> 105668 | R131: 546
J132: 129 | K132: 799 | M132: 108 | N132: 148 | O132: 210 | Q132: =ABS(M132-$B$11)^2+ABS(N132-$D$11)^2+ABS(O132-$F$11)^2 -> 77668 | R132: 466
J133: 130 | K133: 798 | M133: 88 | N133: 113 | O133: 183 | Q133: =ABS(M133-$B$11)^2+ABS(N133-$D$11)^2+ABS(O133-$F$11)^2 -> 54002 | R133: =ABS(M133-$B$11)+ABS(N133-$D$11)+ABS(O133-$F$11) -> 384
J134: 131 | K134: 797 | M134: 78 | N134: 109 | O134: 194 | Q134: =ABS(M134-$B$11)^2+ABS(N134-$D$11)^2+ABS(O134-$F$11)^2 -> 55601 | R134: 381
J135: 132 | K135: 796 | M135: 75 | N135: 86 | O135: 173 | Q135: =ABS(M135-$B$11)^2+ABS(N135-$D$11)^2+ABS(O135-$F$11)^2 -> 42950 | R135: 334
J136: 133 | K136: 820 | M136: 56 | N136: 71 | O136: 138 | Q136: =ABS(M136-$B$11)^2+ABS(N136-$D$11)^2+ABS(O136-$F$11)^2 -> 27221 | R136: 265
J137: 134 | K137: 162 | M137: 187 | N137: 232 | O137: 243 | Q137: =ABS(M137-$B$11)^2+ABS(N137-$D$11)^2+ABS(O137-$F$11)^2 -> 147842 | R137: 662
J138: 135 | K138: 827 | M138: 154 | N138: 197 | O138: 206 | Q138: =ABS(M138-$B$11)^2+ABS(N138-$D$11)^2+ABS(O138-$F$11)^2 -> 104961 | R138: 557
J139: 136 | K139: 813 | M139: 76 | N139: 158 | O139: 200 | Q139: =ABS(M139-$B$11)^2+ABS(N139-$D$11)^2+ABS(O139-$F$11)^2 -> 70740 | R139: 434
J140: 137 | K140: 826 | M140: 35 | N140: 135 | O140: 195 | Q140: =ABS(M140-$B$11)^2+ABS(N140-$D$11)^2+ABS(O140-$F$11)^2 -> 57475 | R140: 365
J141: 138 | K141: 825 | M141: 29 | N141: 112 | O141: 169 | Q141: =ABS(M141-$B$11)^2+ABS(N141-$D$11)^2+ABS(O141-$F$11)^2 -> 41946 | R141: 310
J142: 139 | K142: 824 | M142: 33 | N142: 86 | O142: 128 | Q142: =ABS(M142-$B$11)^2+ABS(N142-$D$11)^2+ABS(O142-$F$11)^2 -> 24869 | R142: 247
J143: 140 | K143: 996 | M143: 30 | N143: 201 | O143: 207 | Q143: =ABS(M143-$B$11)^2+ABS(N143-$D$11)^2+ABS(O143-$F$11)^2 -> 84150 | R143: 438
J144: 141 | K144: 3843 | M144: 30 | N144: 178 | O144: 188 | Q144: =ABS(M144-$B$11)^2+ABS(N144-$D$11)^2+ABS(O144-$F$11)^2 -> 67928 | R144: 396
J145: 142 | K145: 995 | M145: 30 | N145: 149 | O145: 163 | Q145: =ABS(M145-$B$11)^2+ABS(N145-$D$11)^2+ABS(O145-$F$11)^2 -> 49670 | R145: 342
J146: 143 | K146: 3846 | M146: 0 | N146: 196 | O146: 210 | Q146: =ABS(M146-$B$11)^2+ABS(N146-$D$11)^2+ABS(O146-$F$11)^2 -> 82516 | R146: 406
J147: 144 | K147: 3845 | M147: 0 | N147: 177 | O147: 201 | Q147: =ABS(M147-$B$11)^2+ABS(N147-$D$11)^2+ABS(O147-$F$11)^2 -> 71730 | R147: 378
J148: 145 | K148: 3844 | M148: 0 | N148: 152 | O148: 172 | Q148: =ABS(M148-$B$11)^2+ABS(N148-$D$11)^2+ABS(O148-$F$11)^2 -> 52688 | R148: 324
J149: 146 | K149: 159 | M149: 150 | N149: 178 | O149: 205 | Q149: =ABS(M149-$B$11)^2+ABS(N149-$D$11)^2+ABS(O149-$F$11)^2 -> 96209 | R149: 533
J150: 147 | K150: 160 | M150: 120 | N150: 145 | O150: 173 | Q150: =ABS(M150-$B$11)^2+ABS(N150-$D$11)^2+ABS(O150-$F$11)^2 -> 65354 | R150: 438
J151: 148 | K151: 161 | M151: 97 | N151: 112 | O151: 134 | Q151: =ABS(M151-$B$11)^2+ABS(N151-$D$11)^2+ABS(O151-$F$11)^2 -> 39909 | R151: 343
J152: 149 | K152: 3756 | M152: 233 | N152: 247 | O152: 244 | Q152: =ABS(M152-$B$11)^2+ABS(N152-$D$11)^2+ABS(O152-$F$11)^2 -> 174834 | R152: 724
J153: 150 | K153: 775 | M153: 190 | N153: 226 | O153: 232 | Q153: =ABS(M153-$B$11)^2+ABS(N153-$D$11)^2+ABS(O153-$F$11)^2 -> 141000 | R153: 648
J154: 151 | K154: 3841 | M154: 156 | N154: 204 | O154: 223 | Q154: =ABS(M154-$B$11)^2+ABS(N154-$D$11)^2+ABS(O154-$F$11)^2 -> 115681 | R154: 583
J155: 152 | K155: 3325 | M155: 136 | N155: 177 | O155: 206 | Q155: =ABS(M155-$B$11)^2+ABS(N155-$D$11)^2+ABS(O155-$F$11)^2 -> 92261 | R155: 519
J156: 153 | K156: 3755 | M156: 109 | N156: 162 | O156: 196 | Q156: =ABS(M156-$B$11)^2+ABS(N156-$D$11)^2+ABS(O156-$F$11)^2 -> 76541 | R156: 467
J157: 154 | K157: 334 | M157: 75 | N157: 140 | O157: 182 | Q157: =ABS(M157-$B$11)^2+ABS(N157-$D$11)^2+ABS(O157-$F$11)^2 -> 58349 | R157: 397
J158: 155 | K158: 322 | M158: 52 | N158: 111 | O158: 153 | Q158: =ABS(M158-$B$11)^2+ABS(N158-$D$11)^2+ABS(O158-$F$11)^2 -> 38434 | R158: 316
J159: 156 | K159: 312 | M159: 47 | N159: 97 | O159: 144 | Q159: =ABS(M159-$B$11)^2+ABS(N159-$D$11)^2+ABS(O159-$F$11)^2 -> 32354 | R159: 288
J160: 157 | K160: 803 | M160: 23 | N160: 91 | O160: 168 | Q160: =ABS(M160-$B$11)^2+ABS(N160-$D$11)^2+ABS(O160-$F$11)^2 -> 37034 | R160: 282
J161: 158 | K161: 336 | M161: 52 | N161: 71 | O161: 97 | Q161: =ABS(M161-$B$11)^2+ABS(N161-$D$11)^2+ABS(O161-$F$11)^2 -> 17154 | R161: 220
J162: 159 | K162: 823 | M162: 51 | N162: 65 | O162: 86 | Q162: =ABS(M162-$B$11)^2+ABS(N162-$D$11)^2+ABS(O162-$F$11)^2 -> 14222 | R162: 202
J163: 160 | K163: 939 | M163: 53 | N163: 59 | O163: 70 | Q163: =ABS(M163-$B$11)^2+ABS(N163-$D$11)^2+ABS(O163-$F$11)^2 -> 11190 | R163: 182
J164: 161 | K164: 3753 | M164: 195 | N164: 235 | O164: 232 | Q164: =ABS(M164-$B$11)^2+ABS(N164-$D$11)^2+ABS(O164-$F$11)^2 -> 147074 | R164: 662
J165: 162 | K165: 3752 | M165: 146 | N165: 184 | O165: 200 | Q165: =ABS(M165-$B$11)^2+ABS(N165-$D$11)^2+ABS(O165-$F$11)^2 -> 95172 | R165: 530
J166: 163 | K166: 932 | M166: 130 | N166: 153 | O166: 169 | Q166: =ABS(M166-$B$11)^2+ABS(N166-$D$11)^2+ABS(O166-$F$11)^2 -> 68870 | R166: 452
J167: 164 | K167: 931 | M167: 100 | N167: 133 | O167: 154 | Q167: =ABS(M167-$B$11)^2+ABS(N167-$D$11)^2+ABS(O167-$F$11)^2 -> 51405 | R167: 387
J168: 165 | K168: 930 | M168: 81 | N168: 109 | O168: 122 | Q168: =ABS(M168-$B$11)^2+ABS(N168-$D$11)^2+ABS(O168-$F$11)^2 -> 33326 | R168: 312
J169: 166 | K169: 3750 | M169: 65 | N169: 86 | O169: 102 | Q169: =ABS(M169-$B$11)^2+ABS(N169-$D$11)^2+ABS(O169-$F$11)^2 -> 22025 | R169: 253
J170: 167 | K170: 828 | M170: 167 | N170: 216 | O170: 213 | Q170: =ABS(M170-$B$11)^2+ABS(N170-$D$11)^2+ABS(O170-$F$11)^2 -> 119914 | R170: 596
J171: 168 | K171: 3761 | M171: 146 | N171: 217 | O171: 236 | Q171: =ABS(M171-$B$11)^2+ABS(N171-$D$11)^2+ABS(O171-$F$11)^2 -> 124101 | R171: 599
J172: 169 | K172: 519 | M172: 124 | N172: 208 | O172: 230 | Q172: =ABS(M172-$B$11)^2+ABS(N172-$D$11)^2+ABS(O172-$F$11)^2 -> 111540 | R172: 562
J173: 170 | K173: 518 | M173: 85 | N173: 167 | O173: 202 | Q173: =ABS(M173-$B$11)^2+ABS(N173-$D$11)^2+ABS(O173-$F$11)^2 -> 75918 | R173: 454
J174: 171 | K174: 3760 | M174: 29 | N174: 127 | O174: 165 | Q174: =ABS(M174-$B$11)^2+ABS(N174-$D$11)^2+ABS(O174-$F$11)^2 -> 44195 | R174: 321
J175: 172 | K175: 517 | M175: 33 | N175: 106 | O175: 152 | Q175: =ABS(M175-$B$11)^2+ABS(N175-$D$11)^2+ABS(O175-$F$11)^2 -> 35429 | R175: 291
J176: 173 | K176: 3842 | M176: 32 | N176: 91 | O176: 135 | Q176: =ABS(M176-$B$11)^2+ABS(N176-$D$11)^2+ABS(O176-$F$11)^2 -> 27530 | R176: 258
J177: 174 | K177: 311 | M177: 40 | N177: 74 | O177: 106 | Q177: =ABS(M177-$B$11)^2+ABS(N177-$D$11)^2+ABS(O177-$F$11)^2 -> 18312 | R177: 220
J178: 175 | K178: 747 | M178: 206 | N178: 223 | O178: 222 | Q178: =ABS(M178-$B$11)^2+ABS(N178-$D$11)^2+ABS(O178-$F$11)^2 -> 141449 | R178: 651
J179: 176 | K179: 3766 | M179: 88 | N179: 183 | O179: 193 | Q179: =ABS(M179-$B$11)^2+ABS(N179-$D$11)^2+ABS(O179-$F$11)^2 -> 78482 | R179: 464
J180: 177 | K180: 807 | M180: 31 | N180: 167 | O180: 182 | Q180: =ABS(M180-$B$11)^2+ABS(N180-$D$11)^2+ABS(O180-$F$11)^2 -> 61974 | R180: 380
J181: 178 | K181: 3765 | M181: 26 | N181: 106 | O181: 132 | Q181: =ABS(M181-$B$11)^2+ABS(N181-$D$11)^2+ABS(O181-$F$11)^2 -> 29336 | R181: 264
J182: 179 | K182: 3811 | M182: 179 | N182: 218 | O182: 214 | Q182: =ABS(M182-$B$11)^2+ABS(N182-$D$11)^2+ABS(O182-$F$11)^2 -> 125361 | R182: 611
J183: 180 | K183: 598 | M183: 136 | N183: 186 | O183: 162 | Q183: =ABS(M183-$B$11)^2+ABS(N183-$D$11)^2+ABS(O183-$F$11)^2 -> 79336 | R183: 484
J184: 181 | K184: 597 | M184: 105 | N184: 170 | O184: 175 | Q184: =ABS(M184-$B$11)^2+ABS(N184-$D$11)^2+ABS(O184-$F$11)^2 -> 70550 | R184: 450
J185: 182 | K185: 3810 | M185: 58 | N185: 141 | O185: 142 | Q185: =ABS(M185-$B$11)^2+ABS(N185-$D$11)^2+ABS(O185-$F$11)^2 -> 43409 | R185: 341
J186: 183 | K186: 3809 | M186: 56 | N186: 131 | O186: 122 | Q186: =ABS(M186-$B$11)^2+ABS(N186-$D$11)^2+ABS(O186-$F$11)^2 -> 35181 | R186: 309
J187: 184 | K187: 3808 | M187: 38 | N187: 97 | O187: 107 | Q187: =ABS(M187-$B$11)^2+ABS(N187-$D$11)^2+ABS(O187-$F$11)^2 -> 22302 | R187: 242
J188: 185 | K188: 928 | M188: 183 | N188: 212 | O188: 194 | Q188: =ABS(M188-$B$11)^2+ABS(N188-$D$11)^2+ABS(O188-$F$11)^2 -> 116069 | R188: 589
J189: 186 | K189: 927 | M189: 156 | N189: 169 | O189: 162 | Q189: =ABS(M189-$B$11)^2+ABS(N189-$D$11)^2+ABS(O189-$F$11)^2 -> 79141 | R189: 487
J190: 187 | K190: 926 | M190: 120 | N190: 137 | O190: 131 | Q190: =ABS(M190-$B$11)^2+ABS(N190-$D$11)^2+ABS(O190-$F$11)^2 -> 50330 | R190: 388
J191: 188 | K191: 3768 | M191: 88 | N191: 112 | O191: 119 | Q191: =ABS(M191-$B$11)^2+ABS(N191-$D$11)^2+ABS(O191-$F$11)^2 -> 34449 | R191: 319
J192: 189 | K192: 924 | M192: 68 | N192: 88 | O192: 94 | Q192: =ABS(M192-$B$11)^2+ABS(N192-$D$11)^2+ABS(O192-$F$11)^2 -> 21204 | R192: 250
J193: 190 | K193: 3849 | M193: 38 | N193: 149 | O193: 136 | Q193: =ABS(M193-$B$11)^2+ABS(N193-$D$11)^2+ABS(O193-$F$11)^2 -> 42141 | R193: 323
J194: 191 | K194: 3848 | M194: 55 | N194: 132 | O194: 123 | Q194: =ABS(M194-$B$11)^2+ABS(N194-$D$11)^2+ABS(O194-$F$11)^2 -> 35578 | R194: 310
J195: 192 | K195: 3847 | M195: 8 | N195: 116 | O195: 97 | Q195: =ABS(M195-$B$11)^2+ABS(N195-$D$11)^2+ABS(O195-$F$11)^2 -> 22929 | R195: 221
J196: 193 | K196: 964 | M196: 154 | N196: 232 | O196: 188 | Q196: =ABS(M196-$B$11)^2+ABS(N196-$D$11)^2+ABS(O196-$F$11)^2 -> 112884 | R196: 574
J197: 194 | K197: 959 | M197: 73 | N197: 183 | O197: 165 | Q197: =ABS(M197-$B$11)^2+ABS(N197-$D$11)^2+ABS(O197-$F$11)^2 -> 66043 | R197: =ABS(M197-$B$11)+ABS(N197-$D$11)+ABS(O197-$F$11) -> 421
J198: 195 | K198: 958 | M198: 38 | N198: 172 | O198: 155 | Q198: =ABS(M198-$B$11)^2+ABS(N198-$D$11)^2+ABS(O198-$F$11)^2 -> 55053 | R198: 365
J199: 196 | K199: 3812 | M199: 0 | N199: 146 | O199: 127 | Q199: =ABS(M199-$B$11)^2+ABS(N199-$D$11)^2+ABS(O199-$F$11)^2 -> 37445 | R199: 273
J200: 197 | K200: 3851 | M200: 68 | N200: 176 | O200: 147 | Q200: =ABS(M200-$B$11)^2+ABS(N200-$D$11)^2+ABS(O200-$F$11)^2 -> 57209 | R200: 391
J201: 198 | K201: 943 | M201: 14 | N201: 147 | O201: 122 | Q201: =ABS(M201-$B$11)^2+ABS(N201-$D$11)^2+ABS(O201-$F$11)^2 -> 36689 | R201: 283
J202: 199 | K202: 3850 | M202: 36 | N202: 152 | O202: 115 | Q202: =ABS(M202-$B$11)^2+ABS(N202-$D$11)^2+ABS(O202-$F$11)^2 -> 37625 | R202: 303
... 301 more rows

Sheet RGB対応表
B3: 番号 | C3: 色 | D3: R | E3: G | F3: B | H3: 番号 | I3: 色 | J3: R | K3: G | L3: B | N3: 番号 | O3: 色 | P3: R | Q3: G | R3: B | T3: 番号 | U3: 色 | V3: R | W3: G | X3: B | Z3: 番号 | AA3: 色 | AB3: R | AC3: G | AD3: B | AF3: 番号 | AG3: 色 | AH3: R | AI3: G | AJ3: B | AL3: 番号 | AM3: 色 | AN3: R | AO3: G | AP3: B | AR3: 番号 | AS3: 色 | AT3: R | AU3: G | AV3: B | AX3: 番号 | AY3: 色 | AZ3: R | BA3: G | BB3: B | BD3: 番号 | BE3: 色 | BF3: R | BG3: G | BH3: B
B4: 3713 | D4: 253 | E4: 204 | F4: 198 | H4: 894 | J4: 255 | K4: 177 | L4: 201 | N4: 23 | P4: 248 | Q4: 226 | R4: 224 | T4: 778 | V4: 213 | W4: 172 | X4: 183 | Z4: 3743 | AB4: 188 | AC4: 170 | AD4: 182 | AF4: 3840 | AH4: 148 | AI4: 184 | AJ4: 199 | AL4: 159 | AN4: 150 | AO4: 178 | AP4: 205 | AR4: 828 | AT4: 167 | AU4: 216 | AV4: 213 | AX4: 964 | AZ4: 154 | BA4: 232 | BB4: 188 | BD4: 955 | BF4: 165 | BG4: 226 | BH4: 173
B5: 761 | D5: 253 | E5: 187 | F5: 170 | H5: 893 | J5: 255 | K5: 121 | L5: 150 | N5: 3689 | P5: 254 | Q5: 203 | R5: 209 | T5: 3727 | V5: 215 | W5: 163 | X5: 183 | Z5: 3042 | AB5: 158 | AC5: 145 | AD5: 165 | AF5: 3839 | AH5: 97 | AI5: 141 | AJ5: 204 | AL5: 160 | AN5: 120 | AO5: 145 | AP5: 173 | AR5: 3761 | AT5: 146 | AU5: 217 | AV5: 236 | AX5: 959 | AZ5: 73 | BA5: 183 | BB5: 165 | BD5: 13 | BF5: 169 | BG5: 213 | BH5: 164
B6: 760 | D6: 253 | E6: 155 | F6: 157 | H6: 892 | J6: 241 | K6: 82 | L6: 96 | N6: 3688 | P6: 199 | Q6: 135 | R6: 156 | T6: 316 | V6: 205 | W6: 139 | X6: 168 | Z6: 3041 | AB6: 131 | AC6: 111 | AD6: 137 | AF6: 3838 | AH6: 70 | AI6: 128 | AJ6: 207 | AL6: 161 | AN6: 97 | AO6: 112 | AP6: 134 | AR6: 519 | AT6: 124 | AU6: 208 | AV6: 230 | AX6: 958 | AZ6: 38 | BA6: 172 | BB6: 155 | BD6: 954 | BF6: 144 | BG6: 204 | BH6: 149
B7: 3712 | D7: 215 | E7: 89 | F7: 94 | H7: 891 | J7: 218 | K7: 85 | L7: 100 | N7: 3687 | P7: 180 | Q7: 95 | R7: 120 | T7: 3726 | V7: 142 | W7: 91 | X7: 106 | Z7: 3740 | AB7: 102 | AC7: 83 | AD7: 98 | AF7: 800 | AH7: 158 | AI7: 203 | AJ7: 233 | AL7: 3756 | AN7: 233 | AO7: 247 | AP7: 244 | AR7: 518 | AT7: 85 | AU7: 167 | AV7: 202 | AX7: 3812 | AZ7: 0 | BA7: 146 | BB7: 127 | BD7: 913 | BF7: 99 | BG7: 201 | BH7: 138
B8: 3328 | D8: 205 | E8: 71 | F8: 75 | H8: 818 | J8: 255 | K8: 224 | L8: 231 | N8: 3803 | P8: 147 | Q8: 72 | R8: 100 | T8: 315 | V8: 139 | W8: 82 | X8: 93 | Z8: 27 | AB8: 219 | AC8: 209 | AD8: 210 | AF8: 809 | AH8: 128 | AI8: 178 | AJ8: 240 | AL8: 775 | AN8: 190 | AO8: 226 | AP8: 232 | AR8: 3760 | AT8: 29 | AU8: 127 | AV8: 165 | AX8: 3851 | AZ8: 68 | BA8: 176 | BB8: 147 | BD8: 912 | BF8: 84 | BG8: 148 | BH8: 104
B9: 347 | D9: 182 | E9: 58 | F9: 60 | H9: 957 | J9: 255 | K9: 169 | L9: 167 | N9: 3685 | P9: 134 | Q9: 65 | R9: 87 | T9: 3802 | V9: 139 | W9: 76 | X9: 87 | Z9: 28 | AB9: 121 | AC9: 106 | AD9: 119 | AF9: 799 | AH9: 108 | AI9: 148 | AJ9: 210 | AL9: 3841 | AN9: 156 | AO9: 204 | AP9: 223 | AR9: 517 | AT9: 33 | AU9: 106 | AV9: 152 | AX9: 943 | AZ9: 14 | BA9: 147 | BB9: 122 | BD9: 911 | BF9: 0 | BG9: 157 | BH9: 92
B10: 353 | D10: 255 | E10: 188 | F10: 177 | H10: 956 | J10: 255 | K10: 131 | L10: 144 | N10: 605 | P10: 255 | Q10: 189 | R10: 207 | T10: 902 | V10: 104 | W10: 59 | X10: 79 | Z10: 29 | AB10: 69 | AC10: 54 | AD10: 66 | AF10: 798 | AH10: 88 | AI10: 113 | AJ10: 183 | AL10: 3325 | AN10: 136 | AO10: 177 | AP10: 206 | AR10: 3842 | AT10: 32 | AU10: 91 | AV10: 135 | AX10: 3850 | AZ10: 36 | BA10: 152 | BB10: 115 | BD10: 910 | BF10: 31 | BG10: 131 | BH10: 76
B11: 352 | D11: 255 | E11: 147 | F11: 150 | H11: 3708 | J11: 255 | K11: 164 | L11: 162 | N11: 604 | P11: 239 | Q11: 146 | R11: 163 | T11: 3836 | V11: 179 | W11: 134 | X11: 162 | Z11: 3747 | AB11: 185 | AC11: 199 | AD11: 219 | AF11: 797 | AH11: 78 | AI11: 109 | AJ11: 194 | AL11: 3755 | AN11: 109 | AO11: 162 | AP11: 196 | AR11: 311 | AT11: 40 | AU11: 74 | AV11: 106 | AX11: 993 | AZ11: 114 | BA11: 187 | BB11: 160 | BD11: 909 | BF11: 51 | BG11: 123 | BH11: 79
B12: 351 | D12: 243 | E12: 98 | F12: 108 | H12: 3706 | J12: 255 | K12: 111 | L12: 122 | N12: 603 | P12: 226 | Q12: 120 | R12: 163 | T12: 3835 | V12: 142 | W12: 103 | X12: 135 | Z12: 341 | AB12: 161 | AC12: 183 | AD12: 201 | AF12: 796 | AH12: 75 | AI12: 86 | AJ12: 173 | AL12: 334 | AN12: 75 | AO12: 140 | AP12: 182 | AR12: 747 | AT12: 206 | AU12: 223 | AV12: 222 | AX12: 992 | AZ12: 78 | BA12: 163 | BB12: 145 | BD12: 3818 | BF12: 27 | BG12: 99 | BH12: 66
B13: 350 | D13: 237 | E13: 77 | F13: 80 | H13: 3705 | J13: 255 | K13: 77 | L13: 93 | N13: 602 | P13: 218 | Q13: 97 | R13: 143 | T13: 3834 | V13: 125 | W13: 81 | X13: 115 | Z13: 156 | AB13: 112 | AC13: 141 | AD13: 185 | AF13: 820 | AH13: 56 | AI13: 71 | AJ13: 138 | AL13: 322 | AN13: 52 | AO13: 111 | AP13: 153 | AR13: 3766 | AT13: 88 | AU13: 183 | AV13: 193 | AX13: 3814 | AZ13: 40 | BA13: 153 | BB13: 129 | BD13: 369 | BF13: 215 | BG13: 233 | BH13: 171
B14: 349 | D14: 208 | E14: 68 | F14: 72 | H14: 963 | J14: 255 | K14: 208 | L14: 227 | N14: 601 | P14: 212 | Q14: 82 | R14: 129 | T14: 154 | V14: 77 | W14: 54 | X14: 75 | Z14: 340 | AB14: 163 | AC14: 136 | AD14: 186 | AF14: 162 | AH14: 187 | AI14: 232 | AJ14: 243 | AL14: 312 | AN14: 47 | AO14: 97 | AP14: 144 | AR14: 807 | AT14: 31 | AU14: 167 | AV14: 182 | AX14: 991 | AZ14: 8 | BA14: 115 | BB14: 98 | BD14: 368 | BF14: 146 | BG14: 168 | BH14: 121
B15: 817 | D15: 190 | E15: 57 | F15: 67 | H15: 3716 | J15: 255 | K15: 177 | L15: 188 | N15: 600 | P15: 196 | Q15: 61 | R15: 107 | T15: 24 | V15: 229 | W15: 215 | X15: 222 | Z15: 155 | AB15: 155 | AC15: 129 | AD15: 194 | AF15: 827 | AH15: 154 | AI15: 197 | AJ15: 206 | AL15: 803 | AN15: 23 | AO15: 91 | AP15: 168 | AR15: 3765 | AT15: 26 | AU15: 106 | AV15: 132 | AX15: 966 | AZ15: 168 | BA15: 220 | BB15: 173 | BD15: 320 | BF15: 118 | BG15: 138 | BH15: 110
B16: 304 | D16: 171 | E16: 52 | F16: 79 | H16: 962 | J16: 255 | K16: 140 | L16: 171 | N16: 3806 | P16: 241 | Q16: 140 | R16: 179 | T16: 25 | V16: 217 | W16: 203 | X16: 218 | Z16: 3746 | AB16: 143 | AC16: 115 | AD16: 178 | AF16: 813 | AH16: 76 | AI16: 158 | AJ16: 200 | AL16: 336 | AN16: 52 | AO16: 71 | AP16: 97 | AR16: 3811 | AT16: 179 | AU16: 218 | AV16: 214 | AX16: 564 | AZ16: 158 | BA16: 208 | BB16: 169 | BD16: 367 | BF16: 98 | BG16: 127 | BH16: 100
B17: 3833 | D17: 233 | E17: 97 | F17: 119 | H17: 961 | J17: 235 | K17: 85 | L17: 126 | N17: 3805 | P17: 221 | Q17: 96 | R17: 136 | T17: 26 | V17: 201 | W17: 195 | X17: 216 | Z17: 333 | AB17: 133 | AC17: 98 | AD17: 181 | AF17: 826 | AH17: 35 | AI17: 135 | AJ17: 195 | AL17: 823 | AN17: 51 | AO17: 65 | AP17: 86 | AR17: 598 | AT17: 136 | AU17: 186 | AV17: 162 | AX17: 563 | AZ17: 124 | BA17: 175 | BB17: 147 | BD17: 319 | BF17: 57 | BG17: 82 | BH17: 67
B18: 3832 | D18: 201 | E18: 89 | F18: 109 | H18: 309 | J18: 169 | K18: 62 | L18: 82 | N18: 3804 | P18: 199 | Q18: 78 | R18: 116 | T18: 211 | V18: 200 | W18: 186 | X18: 221 | Z18: 30 | AB18: 122 | AC18: 111 | AD18: 137 | AF18: 825 | AH18: 29 | AI18: 112 | AJ18: 169 | AL18: 939 | AN18: 53 | AO18: 59 | AP18: 70 | AR18: 597 | AT18: 105 | AU18: 170 | AV18: 175 | AX18: 562 | AZ18: 105 | BA18: 158 | BB18: 127 | BD18: 890 | BF18: 55 | BG18: 79 | BH18: 67
B19: 3831 | D19: 183 | E19: 69 | F19: 93 | H19: 819 | J19: 251 | K19: 222 | L19: 222 | N19: 3609 | P19: 229 | Q19: 161 | R19: 194 | T19: 210 | V19: 188 | W19: 164 | X19: 210 | Z19: 31 | AB19: 97 | AC19: 87 | AD19: 115 | AF19: 824 | AH19: 33 | AI19: 86 | AJ19: 128 | AL19: 3753 | AN19: 195 | AO19: 235 | AP19: 232 | AR19: 3810 | AT19: 58 | AU19: 141 | AV19: 142 | AX19: 505 | AZ19: 78 | BA19: 121 | BB19: 88 | BD19: 164 | BF19: 163 | BG19: 199 | BH19: 150
B20: 777 | D20: 150 | E20: 53 | F20: 77 | H20: 3326 | J20: 244 | K20: 166 | L20: 165 | N20: 3608 | P20: 234 | Q20: 148 | R20: 179 | T20: 209 | V20: 160 | W20: 133 | X20: 182 | Z20: 32 | AB20: 77 | AC20: 69 | AD20: 94 | AF20: 996 | AH20: 30 | AI20: 201 | AJ20: 207 | AL20: 3752 | AN20: 146 | AO20: 184 | AP20: 200 | AR20: 3809 | AT20: 56 | AU20: 131 | AV20: 122 | AX20: 3817 | AZ20: 152 | BA20: 175 | BB20: 160 | BD20: 989 | BF20: 135 | BG20: 152 | BH20: 96
B21: 3801 | D21: 220 | E21: 65 | F21: 66 | H21: 899 | J21: 232 | K21: 118 | L21: 142 | N21: 3607 | P21: 207 | Q21: 117 | R21: 180 | T21: 208 | V21: 134 | W21: 106 | X21: 168 | Z21: 157 | AB21: 152 | AC21: 188 | AD21: 191 | AF21: 3843 | AH21: 30 | AI21: 178 | AJ21: 188 | AL21: 932 | AN21: 130 | AO21: 153 | AP21: 169 | AR21: 3808 | AT21: 38 | AU21: 97 | AV21: 107 | AX21: 3816 | AZ21: 91 | BA21: 148 | BB21: 126 | BD21: 988 | BF21: 114 | BG21: 134 | BH21: 80
B22: 666 | D22: 215 | E22: 53 | F22: 62 | H22: 335 | J22: 221 | K22: 94 | L22: 123 | N22: 718 | P22: 160 | Q22: 68 | R22: 114 | T22: 3837 | V22: 118 | W22: 91 | X22: 152 | Z22: 794 | AB22: 126 | AC22: 163 | AD22: 198 | AF22: 995 | AH22: 30 | AI22: 149 | AJ22: 163 | AL22: 931 | AN22: 100 | AO22: 133 | AP22: 154 | AR22: 928 | AT22: 183 | AU22: 212 | AV22: 194 | AX22: 163 | AZ22: 103 | BA22: 143 | BB22: 125 | BD22: 987 | BF22: 73 | BG22: 95 | BH22: 62
B23: 321 | D23: 172 | E23: 65 | F23: 77 | H23: 326 | J23: 168 | K23: 60 | L23: 83 | N23: 917 | P23: 173 | Q23: 76 | R23: 139 | T23: 327 | V23: 119 | W23: 81 | X23: 131 | Z23: 793 | AB23: 110 | AC23: 138 | AD23: 174 | AF23: 3846 | AH23: 0 | AI23: 196 | AJ23: 210 | AL23: 930 | AN23: 81 | AO23: 109 | AP23: 122 | AR23: 927 | AT23: 156 | AU23: 169 | AV23: 162 | AX23: 3815 | AZ23: 78 | BA23: 129 | BB23: 107 | BD23: 986 | BF23: 74 | BG23: 96 | BH23: 64
B24: 498 | D24: 132 | E24: 57 | F24: 67 | H24: 151 | J24: 254 | K24: 195 | L24: 212 | N24: 915 | P24: 141 | Q24: 66 | R24: 113 | T24: 153 | V24: 218 | W24: 187 | X24: 218 | Z24: 3807 | AB24: 89 | AC24: 122 | AD24: 161 | AF24: 3845 | AH24: 0 | AI24: 177 | AJ24: 201 | AL24: 3750 | AN24: 65 | AO24: 86 | AP24: 102 | AR24: 926 | AT24: 120 | AU24: 137 | AV24: 131 | AX24: 561 | AZ24: 42 | BA24: 93 | BB24: 79 | BD24: 772 | BF24: 233 | BG24: 248 | BH24: 192
B25: 816 | D25: 152 | E25: 59 | F25: 67 | H25: 3354 | J25: 241 | K25: 156 | L25: 175 | N25: 33 | P25: 127 | Q25: 77 | R25: 111 | T25: 554 | V25: 208 | W25: 171 | X25: 220 | Z25: 792 | AB25: 69 | AC25: 86 | AD25: 136 | AF25: 3844 | AH25: 0 | AI25: 152 | AJ25: 172 | AR25: 3768 | AT25: 88 | AU25: 112 | AV25: 119 | AX25: 3813 | AZ25: 163 | BA25: 191 | BB25: 166 | BD25: 3348 | BF25: 183 | BG25: 190 | BH25: 129
B26: 815 | D26: 144 | E26: 72 | F26: 80 | H26: 3733 | J26: 216 | K26: 122 | L26: 132 | N26: 34 | P26: 107 | Q26: 50 | R26: 78 | T26: 553 | V26: 183 | W26: 143 | X26: 189 | Z26: 158 | AB26: 84 | AC26: 101 | AD26: 137 | AR26: 924 | AT26: 68 | AU26: 88 | AV26: 94 | AX26: 503 | AZ26: 120 | BA26: 158 | BB26: 151 | BD26: 3347 | BF26: 120 | BG26: 135 | BH26: 95
B27: 814 | D27: 107 | E27: 51 | F27: 61 | H27: 3731 | J27: 211 | K27: 118 | L27: 145 | N27: 35 | P27: 81 | Q27: 36 | R27: 57 | T27: 552 | V27: 151 | W27: 111 | X27: 178 | Z27: 791 | AB27: 62 | AC27: 73 | AD27: 113 | AR27: 3849 | AT27: 38 | AU27: 149 | AV27: 136 | AX27: 502 | AZ27: 105 | BA27: 132 | BB27: 117 | BD27: 3346 | BF27: 104 | BG27: 116 | BH27: 76
H28: 3350 | J28: 179 | K28: 83 | L28: 106 | T28: 550 | V28: 131 | W28: 75 | X28: 146 | AR28: 3848 | AT28: 55 | AU28: 132 | AV28: 123 | AX28: 501 | AZ28: 69 | BA28: 101 | BB28: 92 | BD28: 3345 | BF28: 72 | BG28: 88 | BH28: 63
H29: 150 | J29: 168 | K29: 64 | L29: 93 | AR29: 3847 | AT29: 8 | AU29: 116 | AV29: 97 | AX29: 500 | AZ29: 56 | BA29: 71 | BB29: 66 | BD29: 895 | BF29: 68 | BG29: 90 | BH29: 71
B33: 番号 | C33: 色 | D33: R | E33: G | F33: B | H33: 番号 | I33: 色 | J33: R | K33: G | L33: B | N33: 番号 | O33: 色 | P33: R | Q33: G | R33: B | T33: 番号 | U33: 色 | V33: R | W33: G | X33: B | Z33: 番号 | AA33: 色 | AB33: R | AC33: G | AD33: B | AF33: 番号 | AG33: 色 | AH33: R | AI33: G | AJ33: B | AL33: 番号 | AM33: 色 | AN33: R | AO33: G | AP33: B | AR33: 番号 | AS33: 色 | AT33: R | AU33: G | AV33: B | AX33: 番号 | AY33: 色 | AZ33: R | BA33: G | BB33: B | BD33: 番号 | BE33: 色 | BF33: R | BG33: G | BH33: B
B34: 14 | D34: 152 | E34: 203 | F34: 125 | H34: 10 | J34: 182 | K34: 204 | L34: 167 | N34: 17 | P34: 188 | Q34: 162 | R34: 101 | T34: 676 | V34: 245 | W34: 204 | X34: 142 | Z34: 445 | AB34: 250 | AC34: 219 | AD34: 126 | AF34: 951 | AH34: 255 | AI34: 231 | AJ34: 215 | AL34: 948 | AN34: 250 | AO34: 210 | AP34: 189 | AR34: 453 | AT34: 200 | AU34: 189 | AV34: 186 | AX34: 3865 | AZ34: 244 | BA34: 242 | BB34: 236 | BD34: 3072 | BF34: 215 | BG34: 242 | BH34: 188
B35: 15 | D35: 124 | E35: 186 | F35: 90 | H35: 11 | J35: 159 | K35: 168 | L35: 111 | N35: 18 | P35: 167 | Q35: 136 | R35: 75 | T35: 729 | V35: 198 | W35: 153 | X35: 111 | Z35: 307 | AB35: 252 | AC35: 219 | AD35: 84 | AF35: 3856 | AH35: 248 | AI35: 178 | AJ35: 135 | AL35: 754 | AN35: 255 | AO35: 190 | AP35: 164 | AR35: 452 | AT35: 180 | AU35: 163 | AV35: 172 | AX35: ECRU | AZ35: 250 | BA35: 250 | BB35: 230 | BD35: 647 | BF35: 204 | BG35: 212 | BH35: 142
B36: 16 | D36: 122 | E36: 174 | F36: 72 | H36: 12 | J36: 153 | K36: 161 | L36: 92 | N36: 834 | P36: 225 | Q36: 186 | R36: 114 | T36: 680 | V36: 189 | W36: 132 | X36: 70 | Z36: 973 | AB36: 255 | AC36: 214 | AD36: 60 | AF36: 722 | AH36: 255 | AI36: 148 | AJ36: 87 | AL36: 3771 | AN36: 240 | AO36: 168 | AP36: 147 | AR36: 451 | AT36: 127 | AU36: 110 | AV36: 115 | AX36: 822 | AZ36: 205 | BA36: 201 | BB36: 183 | BD36: 3023 | BF36: 195 | BG36: 198 | BH36: 125
B37: 704 | D37: 157 | E37: 179 | F37: 49 | H37: 165 | J37: 238 | K37: 214 | L37: 127 | N37: 833 | P37: 196 | Q37: 155 | R37: 90 | T37: 3829 | V37: 189 | W37: 128 | X37: 73 | Z37: 444 | AB37: 255 | AC37: 207 | AD37: 42 | AF37: 721 | AH37: 228 | AI37: 114 | AJ37: 67 | AL37: 758 | AN37: 235 | AO37: 161 | AP37: 142 | AR37: 3861 | AT37: 160 | AU37: 130 | AV37: 130 | AX37: 644 | AZ37: 175 | BA37: 170 | BB37: 135 | BD37: 3022 | BF37: 172 | BG37: 180 | BH37: 110
B38: 703 | D38: 104 | E38: 189 | F38: 54 | H38: 3819 | J38: 232 | K38: 219 | L38: 109 | N38: 832 | P38: 174 | Q38: 135 | R38: 79 | T38: 3822 | V38: 255 | W38: 214 | X38: 113 | Z38: 3078 | AB38: 255 | AC38: 245 | AD38: 145 | AF38: 720 | AH38: 224 | AI38: 93 | AJ38: 40 | AL38: 3778 | AN38: 212 | AO38: 124 | AP38: 114 | AR38: 3860 | AT38: 135 | AU38: 108 | AV38: 110 | AX38: 642 | AZ38: 137 | BA38: 132 | BB38: 87 | BD38: 3024 | BF38: 220 | BG38: 230 | BH38: 210
B39: 702 | D39: 104 | E39: 161 | F39: 65 | H39: 166 | J39: 195 | K39: 179 | L39: 67 | N39: 831 | P39: 150 | Q39: 117 | R39: 78 | T39: 3821 | V39: 238 | W39: 183 | X39: 88 | Z39: 727 | AB39: 255 | AC39: 225 | AD39: 110 | AF39: 3825 | AH39: 241 | AI39: 171 | AJ39: 141 | AL39: 356 | AN39: 171 | AO39: 93 | AP39: 88 | AR39: 779 | AT39: 100 | AU39: 76 | AV39: 83 | AX39: 640 | AZ39: 102 | BA39: 94 | BB39: 65 | BD39: 648 | BF39: 180 | BG39: 200 | BH39: 180
B40: 701 | D40: 0 | E40: 150 | F40: 81 | H40: 581 | J40: 155 | K40: 156 | L40: 76 | N40: 830 | P40: 135 | Q40: 113 | R40: 70 | T40: 3820 | V40: 226 | W40: 164 | X40: 79 | Z40: 726 | AB40: 255 | AC40: 214 | AD40: 83 | AF40: 922 | AH40: 246 | AI40: 127 | AJ40: 76 | AL40: 3830 | AN40: 169 | AO40: 82 | AP40: 81 | AR40: 09 | AT40: 48 | AU40: 42 | AV40: 42 | AX40: 3787 | AZ40: 90 | BA40: 75 | BB40: 48 | BD40: 646 | BF40: 165 | BG40: 185 | BH40: 165
B41: 700 | D41: 49 | E41: 130 | F41: 83 | H41: 580 | J41: 126 | K41: 123 | L41: 68 | N41: 829 | P41: 131 | Q41: 94 | R41: 67 | T41: 3852 | V41: 240 | W41: 169 | X41: 77 | Z41: 725 | AB41: 255 | AC41: 203 | AD41: 75 | AF41: 921 | AH41: 208 | AI41: 119 | AJ41: 82 | AL41: 355 | AN41: 152 | AO41: 68 | AP41: 69 | AR41: 712 | AT41: 253 | AU41: 236 | AV41: 216 | AX41: 3021 | AZ41: 69 | BA41: 58 | BB41: 41 | BD41: 645 | BF41: 150 | BG41: 170 | BH41: 150
B42: 699 | D42: 44 | E42: 95 | F42: 70 | H42: 523 | J42: 166 | K42: 180 | L42: 149 | N42: 746 | P42: 252 | Q42: 239 | R42: 205 | T42: 728 | V42: 255 | W42: 185 | X42: 58 | Z42: 972 | AB42: 255 | AC42: 180 | AD42: 44 | AF42: 920 | AH42: 171 | AI42: 90 | AJ42: 74 | AL42: 3777 | AN42: 139 | AO42: 65 | AP42: 67 | AR42: 739 | AT42: 237 | AU42: 211 | AV42: 188 | AX42: 844 | AZ42: 50 | BA42: 50 | BB42: 50 | BD42: B5200 | BF42: 242 | BG42: 248 | BH42: 255
B43: 907 | D43: 173 | E43: 181 | F43: 63 | H43: 3053 | J43: 155 | K43: 147 | L43: 104 | N43: 677 | P43: 253 | Q43: 223 | R43: 179 | T43: 783 | V43: 218 | W43: 141 | X43: 62 | Z43: 745 | AB43: 255 | AC43: 235 | AD43: 135 | AF43: 919 | AH43: 160 | AI43: 70 | AJ43: 58 | AL43: 3779 | AN43: 255 | AO43: 198 | AP43: 187 | AR43: 738 | AT43: 233 | AU43: 186 | AV43: 151 | AX43: 3033 | AZ43: 230 | BA43: 230 | BB43: 200 | BD43: BLANC | BF43: 252 | BG43: 252 | BH43: 252
B44: 906 | D44: 135 | E44: 172 | F44: 54 | H44: 3052 | J44: 141 | K44: 146 | L44: 107 | N44: 422 | P44: 203 | Q44: 159 | R44: 122 | T44: 782 | V44: 178 | W44: 116 | X44: 61 | Z44: 744 | AB44: 255 | AC44: 217 | AD44: 113 | AF44: 918 | AH44: 151 | AI44: 76 | AJ44: 69 | AL44: 3859 | AN44: 182 | AO44: 112 | AP44: 107 | AR44: 437 | AT44: 236 | AU44: 181 | AV44: 142 | AX44: 3782 | AZ44: 157 | BA44: 143 | BB44: 102 | BD44: 762 | BF44: 199 | BG44: 200 | BH44: 220
B45: 905 | D45: 95 | E45: 141 | F45: 68 | H45: 3051 | J45: 102 | K45: 107 | L45: 67 | N45: 3828 | P45: 176 | Q45: 130 | R45: 91 | T45: 780 | V45: 156 | W45: 105 | X45: 80 | Z45: 743 | AB45: 255 | AC45: 188 | AD45: 75 | AF45: 3770 | AH45: 254 | AI45: 225 | AJ45: 200 | AL45: 3858 | AN45: 127 | AO45: 72 | AP45: 76 | AR45: 436 | AT45: 191 | AU45: 124 | AV45: 87 | AX45: 3032 | AZ45: 133 | BA45: 117 | BB45: 75 | BD45: 415 | BF45: 178 | BG45: 180 | BH45: 200
B46: 904 | D46: 86 | E46: 105 | F46: 62 | H46: 524 | J46: 183 | K46: 191 | L46: 151 | N46: 420 | P46: 155 | Q46: 123 | R46: 96 | T46: 3823 | V46: 255 | W46: 248 | X46: 201 | Z46: 742 | AB46: 255 | AC46: 171 | AD46: 73 | AF46: 945 | AH46: 228 | AI46: 184 | AJ46: 170 | AL46: 3857 | AN46: 111 | AO46: 66 | AP46: 68 | AR46: 435 | AT46: 179 | AU46: 114 | AV46: 67 | AX46: 3790 | AZ46: 96 | BA46: 83 | BB46: 56 | BD46: 318 | BF46: 147 | BG46: 154 | BH46: 180
B47: 472 | D47: 209 | E47: 195 | F47: 126 | H47: 522 | J47: 136 | K47: 139 | L47: 128 | N47: 869 | P47: 129 | Q47: 90 | R47: 62 | T47: 3855 | V47: 255 | W47: 208 | X47: 146 | Z47: 741 | AB47: 255 | AC47: 155 | AD47: 46 | AF47: 402 | AH47: 230 | AI47: 144 | AJ47: 110 | AL47: 20 | AN47: 240 | AO47: 220 | AP47: 200 | AR47: 434 | AT47: 164 | AU47: 97 | AV47: 66 | AX47: 3781 | AZ47: 59 | BA47: 49 | BB47: 32 | BD47: 414 | BF47: 119 | BG47: 125 | BH47: 150
B48: 471 | D48: 159 | E48: 159 | F48: 102 | H48: 520 | J48: 80 | K48: 99 | L48: 81 | N48: 613 | P48: 217 | Q48: 200 | R48: 178 | T48: 19 | V48: 255 | W48: 220 | X48: 137 | Z48: 740 | AB48: 255 | AC48: 127 | AD48: 46 | AF48: 3776 | AH48: 202 | AI48: 112 | AJ48: 77 | AL48: 21 | AN48: 210 | AO48: 160 | AP48: 140 | AR48: 433 | AT48: 131 | AU48: 87 | AV48: 63 | AX48: 05 | AZ48: 151 | BA48: 149 | BB48: 148 | BD48: 01 | BF48: 180 | BG48: 180 | BH48: 180
B49: 470 | D49: 134 | E49: 146 | F49: 85 | H49: 734 | J49: 200 | K49: 169 | L49: 90 | N49: 612 | P49: 194 | Q49: 161 | R49: 125 | T49: 3854 | V49: 255 | W49: 169 | X49: 119 | Z49: 970 | AB49: 240 | AC49: 107 | AD49: 63 | AF49: 301 | AH49: 182 | AI49: 99 | AJ49: 65 | AL49: 22 | AN49: 180 | AO49: 100 | AP49: 80 | AR49: 801 | AT49: 134 | AU49: 90 | AV49: 76 | AX49: 06 | AZ49: 131 | BA49: 126 | BB49: 123 | BD49: 02 | BF49: 160 | BG49: 160 | BH49: 160
B50: 469 | D50: 105 | E50: 109 | F50: 67 | H50: 733 | J50: 170 | K50: 146 | L50: 77 | N50: 611 | P50: 134 | Q50: 109 | R50: 84 | T50: 3853 | V50: 219 | W50: 135 | X50: 98 | Z50: 947 | AB50: 230 | AC50: 95 | AD50: 64 | AF50: 400 | AH50: 142 | AI50: 76 | AJ50: 61 | AL50: 3774 | AN50: 244 | AO50: 211 | AP50: 196 | AR50: 898 | AT50: 111 | AU50: 85 | AV50: 78 | AX50: 07 | AZ50: 123 | BA50: 116 | BB50: 106 | BD50: 03 | BF50: 140 | BG50: 140 | BH50: 140
B51: 937 | D51: 120 | E51: 118 | F51: 66 | H51: 732 | J51: 123 | K51: 113 | L51: 66 | N51: 610 | P51: 147 | Q51: 128 | R51: 99 | T51: 3827 | V51: 250 | W51: 179 | X51: 135 | Z51: 946 | AB51: 220 | AC51: 85 | AD51: 65 | AF51: 300 | AH51: 121 | AI51: 70 | AJ51: 61 | AL51: 950 | AN51: 255 | AO51: 212 | AP51: 190 | AR51: 938 | AT51: 101 | AU51: 72 | AV51: 66 | AX51: 08 | AZ51: 86 | BA51: 79 | BB51: 70 | BD51: 04 | BF51: 120 | BG51: 120 | BH51: 120
B52: 936 | D52: 93 | E52: 103 | F52: 79 | H52: 730 | J52: 113 | K52: 100 | L52: 61 | N52: 3047 | P52: 255 | Q52: 226 | R52: 168 | T52: 977 | V52: 239 | W52: 158 | X52: 103 | Z52: 900 | AB52: 207 | AC52: 76 | AD52: 66 | AF52: 225 | AH52: 249 | AI52: 193 | AJ52: 189 | AL52: 3064 | AN52: 187 | AO52: 127 | AP52: 114 | AR52: 3371 | AT52: 72 | AU52: 60 | AV52: 62 | AX52: 3866 | AZ52: 212 | BA52: 216 | BB52: 190 | BD52: 535 | BF52: 99 | BG52: 96 | BH52: 96
B53: 935 | D53: 84 | E53: 86 | F53: 72 | H53: 3013 | J53: 182 | K53: 166 | L53: 119 | N53: 3046 | P53: 221 | Q53: 186 | R53: 129 | T53: 976 | V53: 216 | W53: 125 | X53: 70 | Z53: 967 | AB53: 255 | AC53: 193 | AD53: 173 | AF53: 224 | AH53: 240 | AI53: 174 | AJ53: 178 | AL53: 407 | AN53: 183 | AO53: 129 | AP53: 123 | AR53: 543 | AT53: 239 | AU53: 208 | AV53: 195 | AX53: 842 | AZ53: 180 | BA53: 163 | BB53: 130 | BD53: 168 | BF53: 199 | BG53: 209 | BH53: 191
B54: 934 | D54: 73 | E54: 74 | F54: 64 | H54: 3012 | J54: 151 | K54: 140 | L54: 99 | N54: 3045 | P54: 187 | Q54: 139 | R54: 99 | T54: 3826 | V54: 182 | W54: 109 | X54: 73 | Z54: 3824 | AB54: 255 | AC54: 173 | AD54: 156 | AF54: 152 | AH54: 238 | AI54: 155 | AJ54: 165 | AL54: 3772 | AN54: 164 | AO54: 110 | AP54: 102 | AR54: 3864 | AT54: 200 | AU54: 170 | AV54: 140 | AX54: 841 | AZ54: 144 | BA54: 115 | BB54: 71 | BD54: 169 | BF54: 139 | BG54: 148 | BH54: 148
B55: 3364 | D55: 157 | E55: 191 | F55: 122 | H55: 3011 | J55: 126 | K55: 114 | L55: 76 | N55: 167 | P55: 168 | Q55: 120 | R55: 82 | T55: 975 | V55: 136 | W55: 88 | X55: 72 | Z55: 3341 | AB55: 255 | AC55: 144 | AD55: 121 | AF55: 223 | AH55: 187 | AI55: 107 | AJ55: 120 | AL55: 632 | AN55: 145 | AO55: 92 | AP55: 86 | AR55: 3863 | AT55: 148 | AU55: 120 | AV55: 85 | AX55: 840 | AZ55: 106 | BA55: 82 | BB55: 42 | BD55: 317 | BF55: 119 | BG55: 123 | BH55: 127
B56: 3363 | D56: 103 | E56: 149 | F56: 91 | H56: 372 | J56: 179 | K56: 162 | L56: 112 | Z56: 3340 | AB56: 255 | AC56: 121 | AD56: 91 | AF56: 3722 | AH56: 175 | AI56: 97 | AJ56: 109 | AR56: 3862 | AT56: 107 | AU56: 79 | AV56: 45 | AX56: 839 | AZ56: 51 | BA56: 34 | BB56: 20 | BD56: 413 | BF56: 95 | BG56: 105 | BH56: 112
B57: 3362 | D57: 91 | E57: 132 | F57: 77 | H57: 371 | J57: 149 | K57: 134 | L57: 90 | Z57: 608 | AB57: 255 | AC57: 93 | AD57: 73 | AF57: 3721 | AH57: 158 | AI57: 79 | AJ57: 92 | AR57: 3031 | AT57: 35 | AU57: 30 | AV57: 26 | AX57: 838 | AZ57: 34 | BA57: 26 | BB57: 20 | BD57: 3799 | BF57: 72 | BG57: 78 | BH57: 82
H58: 370 | J58: 152 | K58: 126 | L58: 85 | Z58: 606 | AB58: 238 | AC58: 70 | AD58: 67 | AF58: 221 | AH58: 134 | AI58: 64 | AJ58: 71 | BD58: 310 | BF58: 0 | BG58: 0 | BH58: 0
